fUST/lending_fUST_20251201
["ID","MTS","AMOUNT","RATE_DAILY","PERIOD"]
[395195702,1764533450413,-2000.0,0.00013898,3]
[395195703,1764533450422,-166609.89645322,0.000139,2]
[395195704,1764533450431,-2000.0,0.00013902,3]
[395195705,1764533450441,-2000.0,0.00013906,3]
[395195706,1764533450450,-37.07453604,0.00013907,3]
[395195707,1764533450745,-285.29075184,0.00013907,3]
[395195708,1764533450783,-500.0,0.00013907,3]
[395195709,1764533451187,-333.0,0.00012328,2]
[395195710,1764533451198,-473.158891,0.00013273,2]
[395195711,1764533451207,-1633.98114183,0.00013554,2]
[395195712,1764533451216,-473.158891,0.00013698,2]
[395195713,1764533451225,-423.69532267,0.00013698,2]
[395195714,1764533451252,-76.30467733,0.00013698,2]
[395195715,1764533451261,-473.158891,0.00013698,2]
[395195716,1764533451271,-500.0,0.00013698,2]
[395195717,1764533451280,-473.158891,0.00013698,2]
[395195718,1764533451290,-232.33754067,0.00013698,2]
[395195719,1764533451967,-275.3108557,0.00013273,2]
[395195720,1764533452226,-3103.17413463,0.000129,2]
[395195721,1764533452235,-197.8480353,0.00013273,2]
[395195722,1764533452246,-473.158891,0.00013273,2]
[395195723,1764533452257,-240.82135033,0.00013698,2]
[395195724,1764533452266,-473.158891,0.00013698,2]
[395195725,1764533452276,-473.158891,0.00013698,2]
[395195726,1764533452285,-473.158891,0.00013698,2]
[395195727,1764533452294,-473.158891,0.00013698,2]
[395195728,1764533452303,-473.158891,0.00013698,2]
[395195729,1764533452313,-473.158891,0.00013698,2]
[395195730,1764533452324,-1811.28,0.00013698,2]
[395195731,1764533452334,-473.158891,0.00013698,2]
[395195732,1764533452343,-473.158891,0.00013698,2]
[395195733,1764533452352,-500.0,0.00013698,2]
[395195734,1764533452361,-473.158891,0.00013698,2]
[395195735,1764533452370,-473.158888,0.00013698,2]
[395195736,1764533452379,-500.0,0.00013698,2]
[395195737,1764533452388,-1177.63471212,0.00013907,3]
[395195738,1764533452398,-306.17361571,0.0001391,3]
[395195757,1764534632569,-529.0,9.271e-05,2]
[395195758,1764534632578,-227.0,9.365e-05,2]
[395195759,1764534632587,-271.54709298,9.485e-05,2]
[395195760,1764534632598,-80.59324686,9.485e-05,2]
[395195761,1764534632607,-251.0,9.845e-05,2]
[395195762,1764534632616,-525.82289988,9.845e-05,2]
[395195823,1764534638732,-674.17710012,9.845e-05,2]
[395195825,1764534638743,-300.0,9.845e-05,2]
[395195827,1764534638753,-282.04924932,9.846e-05,2]
[395195829,1764534638762,-500.0,9.846e-05,2]
[395195831,1764534638771,-208.20748449,9.846e-05,2]
[395195833,1764534638783,-291.79251551,9.846e-05,2]
[395195835,1764534638793,-500.0,9.846e-05,2]
[395195837,1764534638802,-273.79434218,9.846e-05,2]
[395195839,1764534638811,-463.34013479,9.846e-05,2]
[395195841,1764534638821,-353.67603643,9.86e-05,2]
[395195843,1764534638831,-155.44223031,9.86e-05,2]
[395195845,1764534638840,-300.0,0.00010046,2]
[395195847,1764534638849,-300.0,0.00010046,2]
[395195849,1764534638859,-300.0,0.00010046,2]
[395195851,1764534638869,-300.0,0.00010046,2]
[395195853,1764534638878,-300.0,0.00010046,2]
[395195855,1764534638887,-24.75574589,0.00010046,2]
[395195857,1764534638899,-275.24425411,0.00010046,2]
[395195876,1764534639066,-300.0,0.00010046,2]
[395195878,1764534639079,-300.0,0.00010046,2]
[395195880,1764534639089,-300.0,0.00010046,2]
[395195882,1764534639098,-300.0,0.00010046,2]
[395195884,1764534639107,-300.0,0.00010046,2]
[395195886,1764534639116,-300.0,0.00010046,2]
[395195888,1764534639125,-93.45196217,0.00010046,2]
[395195890,1764534639137,-206.54803783,0.00010046,2]
[395195893,1764534639146,-300.0,0.00010046,2]
[395195895,1764534639156,-176.67630471,0.00010046,2]
[395195897,1764534639167,-123.32369529,0.00010046,2]
[395195899,1764534639176,-600.0,0.00010047,2]
[395195901,1764534639185,-922.75790345,0.00010787,2]
[395195903,1764534639196,-152.28287764,0.00010787,2]
[395195905,1764534639206,-420.0,0.0001083,2]
[395195907,1764534639215,-155.44223028,0.00010898,2]
[395195909,1764534639225,-500.0,0.00010958,2]
[395195911,1764534639234,-356.0,0.00010959,2]
[395195913,1764534639243,-500.0,0.00010959,2]
[395195915,1764534639252,-500.0,0.00010959,2]
[395195917,1764534639266,-500.0,0.00010959,2]
[395195919,1764534639277,-407.96085757,0.00010959,2]
[395195921,1764534639286,-500.0,0.00010959,2]
[395195923,1764534639295,-500.0,0.00010959,2]
[395195925,1764534639305,-500.0,0.00010959,2]
[395195927,1764534639314,-720.0,0.00011051,2]
[395195929,1764534639323,-414.0,0.00011447,2]
[395195931,1764534639332,-415.52560101,0.00011485,2]
[395195933,1764534639341,-587.0,0.00011913,2]
[395195935,1764534639351,-155.44223028,0.00012035,2]
[395195937,1764534639359,-500.0,0.00012054,2]
[395195939,1764534639369,-500.0,0.00012156,2]
[395195941,1764534639378,-864.0,0.00012156,2]
[395195943,1764534639388,-166.0,0.00012519,2]
[395195945,1764534639397,-166.0,0.00012519,2]
[395195946,1764534639406,-166.0,0.00012519,2]
[395195947,1764534639415,-166.0,0.00012519,2]
[395195948,1764534639424,-2715.27736781,0.000129,2]
[395195949,1764534639434,-2715.27736778,0.000129,2]
[395195950,1764534639443,-231.28369723,0.00013073,2]
[395195951,1764534639453,-823.0,0.00013104,2]
[395195952,1764534639462,-500.0,0.0001315,2]
[395195953,1764534639471,-155.44223028,0.00013173,2]
[395195954,1764534639481,-454.96116382,0.00013273,2]
[395195955,1764534639490,-500.0,0.00013273,2]
[395195956,1764534639499,-500.0,0.00013273,2]
[395195957,1764534639508,-500.0,0.00013273,2]
[395195958,1764534639517,-500.0,0.00013273,2]
[395195959,1764534639526,-500.0,0.00013273,2]
[395195960,1764534639535,-500.0,0.00013273,2]
[395195961,1764534639544,-500.0,0.00013273,2]
[395195962,1764534639554,-500.0,0.00013273,2]
[395195963,1764534639563,-500.0,0.00013273,2]
[395195964,1764534639572,-500.0,0.00013273,2]
[395195965,1764534639581,-500.0,0.00013273,2]
[395195966,1764534639591,-500.0,0.00013273,2]
[395195967,1764534639600,-500.0,0.00013273,2]
[395195968,1764534639610,-501.44089719,0.00013273,2]
[395195969,1764534639619,-500.0,0.00013273,2]
[395195970,1764534639628,-4815.42495851,0.00013273,2]
[395195971,1764534639663,-296.26393716,0.00013273,2]
[395196120,1764534641049,-9178.21096137,0.00013273,2]
[395196123,1764534641068,-804.7719191,0.00013273,2]
[395196392,1764534643783,-500.0,0.00013273,2]
[395196393,1764534643793,-29440.70554088,0.00013273,2]
[395196394,1764534643804,-5396.0609,0.00013273,2]
[395196589,1764534645714,-68.56178298,0.00013273,2]
[395196591,1764534645724,-1000.0,0.00013372,2]
[395196593,1764534645733,-478.91086219,0.00013485,2]
[395196595,1764534645742,-1633.98114183,0.00013579,2]
[395196597,1764534645752,-239.84119403,0.00013621,2]
[395196599,1764534645761,-1578.70501897,0.00013654,3]
[395196601,1764534645772,-421.29498103,0.00013654,3]
[395196603,1764534645780,-2000.0,0.00013663,3]
[395196605,1764534645789,-1879.73150407,0.00013671,3]
[395196790,1764535831734,-553.74880378,8.746e-05,2]
[395196792,1764535831744,-223.0,8.834e-05,2]
[395196794,1764535831754,-330.74880378,8.879e-05,2]
[395196796,1764535831763,-597.86741828,9.104e-05,2]
[395196798,1764535831772,-300.0,9.851e-05,2]
[395196800,1764535831781,-300.0,9.851e-05,2]
[395196802,1764535831790,-1200.0,9.851e-05,2]
[395196804,1764535831799,-234.92065318,9.851e-05,2]
[395196806,1764535831809,-197.08826024,9.851e-05,2]
[395196808,1764535831818,-353.67603643,9.852e-05,2]
[395196810,1764535831828,-300.0,9.945e-05,2]
[395196812,1764535831837,-300.0,9.945e-05,2]
[395196814,1764535831846,-300.0,9.945e-05,2]
[395196816,1764535831856,-300.0,9.945e-05,2]
[395196818,1764535831865,-300.0,9.945e-05,2]
[395196820,1764535831874,-300.0,9.945e-05,2]
[395196822,1764535831883,-300.0,9.945e-05,2]
[395196824,1764535831892,-300.0,9.945e-05,2]
[395196826,1764535831901,-300.0,9.945e-05,2]
[395196828,1764535831911,-300.0,9.945e-05,2]
[395196830,1764535831920,-300.0,9.945e-05,2]
[395196832,1764535831929,-300.0,9.945e-05,2]
[395196834,1764535831938,-300.0,9.945e-05,2]
[395196836,1764535831947,-300.0,9.945e-05,2]
[395196838,1764535831955,-300.0,9.945e-05,2]
[395196840,1764535831965,-600.0,9.945e-05,2]
[395196841,1764535831974,-420.0,0.00010836,2]
[395196844,1764535831983,-390.28358846,0.00010879,2]
[395196845,1764535831992,-720.0,0.00010939,2]
[395196847,1764535832001,-500.0,0.00010958,2]
[395196849,1764535832011,-999.0,0.00010959,2]
[395196851,1764535832020,-500.0,0.00010959,2]
[395196853,1764535832029,-500.0,0.00010959,2]
[395196855,1764535832038,-500.0,0.00010959,2]
[395196857,1764535832047,-500.0,0.00010959,2]
[395196858,1764535832057,-500.0,0.00010959,2]
[395196859,1764535832067,-158.48527792,0.00010959,2]
[395196861,1764535832076,-587.0,0.0001192,2]
[395196863,1764535832085,-414.0,0.0001202,2]
[395196865,1764535832094,-864.0,0.00012033,2]
[395196867,1764535832103,-500.0,0.00012054,2]
[395196869,1764535832112,-449.81837314,0.00012879,2]
[395196871,1764535832122,-2055.80204141,0.000129,2]
[395196873,1764535832131,-2055.80204136,0.000129,2]
[395196875,1764535832140,-231.28369723,0.00013075,2]
[395196877,1764535832149,-823.0,0.00013112,2]
[395196879,1764535832158,-2055.80204136,0.00013146,2]
[395196881,1764535832168,-500.0,0.0001315,2]
[395196883,1764535832177,-408.573482,0.00013171,2]
[395196885,1764535832187,-2850.6082628,0.00013198,2]
[395196887,1764535832196,-1000.0,0.00013236,2]
[395196890,1764535832205,-500.0,0.00013273,2]
[395196891,1764535832215,-500.0,0.00013273,2]
[395196894,1764535832224,-500.0,0.00013273,2]
[395196896,1764535832233,-500.0,0.00013273,2]
[395196897,1764535832242,-500.0,0.00013273,2]
[395196899,1764535832251,-500.0,0.00013273,2]
[395196900,1764535832260,-500.0,0.00013273,2]
[395196901,1764535832269,-500.0,0.00013273,2]
[395196902,1764535832278,-500.0,0.00013273,2]
[395196903,1764535832287,-500.0,0.00013273,2]
[395196904,1764535832297,-500.0,0.00013273,2]
[395196905,1764535832306,-170.3130577,0.00013273,2]
[395196906,1764535832315,-50000.0,0.00013273,2]
[395196907,1764535832325,-1633.98114183,0.00013303,2]
[395196908,1764535832334,-239.84119403,0.00013623,2]
[395196909,1764535832343,-120.26849593,0.00013671,3]
[395196910,1764535832352,-300.0,0.00013673,2]
[395196911,1764535832361,-2000.0,0.0001368,3]
[395196912,1764535832370,-2000.0,0.00013689,3]
[395196913,1764535832379,-2000.0,0.00013698,3]
[395196914,1764535832387,-218.12871052,0.00013698,2]
[395196915,1764535832396,-261.32748236,0.00013698,2]
[395196916,1764535832405,-500.0,0.00013698,2]
[395196917,1764535832414,-505.30734982,0.00013698,2]
[395196918,1764535832423,-500.0,0.00013698,2]
[395196919,1764535832434,-500.0,0.00013698,2]
[395196920,1764535832442,-500.0,0.00013698,2]
[395196921,1764535832451,-500.0,0.00013698,2]
[395196922,1764535832460,-500.0,0.00013698,2]
[395196923,1764535832470,-376.19745629,0.00013698,2]
[395196924,1764535832479,-500.0,0.00013698,2]
[395196925,1764535832487,-500.0,0.00013698,2]
[395196926,1764535832497,-500.0,0.00013698,2]
[395196927,1764535832506,-688.98,0.00013698,2]
[395196928,1764535832515,-500.0,0.00013698,2]
[395196929,1764535832524,-500.0,0.00013698,2]
[395196930,1764535832533,-500.0,0.00013698,2]
[395196931,1764535832547,-8.83171469,0.00013698,2]
[395196977,1764535837878,-553.74880378,8.659e-05,2]
[395196978,1764535837887,-284.21119622,9.651e-05,2]
[395196989,1764535837985,-748.8671078,9.651e-05,2]
[395196991,1764535837996,-4723.10850785,9.651e-05,2]
[395197200,1764535839911,-250.77106545,9.651e-05,2]
[395197211,1764535840021,-453.0,9.651e-05,2]
[395197494,1764535842917,-417.55037667,9.651e-05,2]
[395197507,1764535843027,-3818.60000002,9.651e-05,2]
[395197773,1764535845837,-561.00000001,9.651e-05,2]
[395197785,1764535845944,-302.0,9.651e-05,2]
[395197858,1764537031925,-225.0,8.992e-05,2]
[395197860,1764537031935,-225.0,9.083e-05,2]
[395197862,1764537031944,-478.43739412,9.104e-05,2]
[395197864,1764537031953,-308.94365341,9.269e-05,2]
[395197865,1764537031962,-229.20927328,9.55e-05,2]
[395197867,1764537031971,-300.0,9.55e-05,2]
[395197869,1764537031980,-251.0,9.55e-05,2]
[395197871,1764537031989,-207.62649777,9.55e-05,2]
[395197873,1764537032000,-992.37350223,9.55e-05,2]
[395197875,1764537032009,-92077.73775725,9.551e-05,2]
[395197878,1764537032028,-2997.86350935,9.551e-05,2]
[395197880,1764537032039,-28289.51667992,9.551e-05,2]
[395197962,1764537038046,-4874.98644641,9.455e-05,2]
[395197964,1764537038058,-5261.84721165,9.455e-05,2]
[395197966,1764537038067,-21708.60714491,9.551e-05,2]
[395197971,1764537038104,-1668.75000003,9.551e-05,2]
[395197973,1764537038115,-653.5749005,9.551e-05,2]
[395197975,1764537038127,-429553.47636185,9.551e-05,2]
[395197978,1764537038138,-617.6599536,9.551e-05,2]
[395198187,1764537040355,-10423.99146691,9.551e-05,2]
[395198190,1764537040375,-303.52,9.551e-05,2]
[395198192,1764537040385,-576.57381697,9.551e-05,2]
[395198196,1764537040406,-5545.07310331,9.551e-05,2]
[395198479,1764537043069,-29580.65773553,9.551e-05,2]
[395198480,1764537043081,-1505.61979688,9.551e-05,2]
[395198738,1764537045940,-462.228,9.455e-05,2]
[395198740,1764537045950,-2077.69088579,9.551e-05,2]
[395198746,1764537045997,-14889.70911396,9.551e-05,2]
[395198748,1764537046008,-4771.30280807,9.551e-05,2]
[395198750,1764537046019,-118315.97295031,9.551e-05,2]
[395198752,1764537046030,-302.76478034,9.647e-05,2]
[395198754,1764537046039,-300.0,9.744e-05,2]
[395198756,1764537046048,-300.0,9.744e-05,2]
[395198758,1764537046057,-300.0,9.744e-05,2]
[395198760,1764537046066,-300.0,9.744e-05,2]
[395198762,1764537046075,-300.0,9.744e-05,2]
[395198764,1764537046084,-300.0,9.744e-05,2]
[395198766,1764537046093,-300.0,9.744e-05,2]
[395198768,1764537046102,-300.0,9.744e-05,2]
[395198770,1764537046111,-300.0,9.744e-05,2]
[395198772,1764537046120,-272.8558552,9.744e-05,2]
[395198775,1764537046131,-27.1441448,9.744e-05,2]
[395198777,1764537046142,-300.0,9.744e-05,2]
[395198779,1764537046151,-300.0,9.744e-05,2]
[395198781,1764537046160,-300.0,9.744e-05,2]
[395198783,1764537046170,-300.0,9.744e-05,2]
[395198785,1764537046179,-300.0,9.744e-05,2]
[395198787,1764537046188,-50000.0,9.744e-05,2]
[395198789,1764537046197,-600.0,9.843e-05,2]
[395198791,1764537046207,-353.67603643,9.856e-05,2]
[395198793,1764537046217,-420.0,0.00010505,2]
[395198795,1764537046227,-720.0,0.00010827,2]
[395198797,1764537046236,-500.0,0.00010958,2]
[395198799,1764537046247,-319.73898029,0.00010959,2]
[395198800,1764537046256,-500.0,0.00010959,2]
[395198802,1764537046265,-500.0,0.00010959,2]
[395198804,1764537046275,-500.0,0.00010959,2]
[395198807,1764537046285,-494.66690658,0.00010959,2]
[395198809,1764537046295,-184.0,0.00011555,2]
[395198811,1764537046306,-357.2624408,0.00011647,2]
[395198812,1764537046316,-864.0,0.0001191,2]
[395198815,1764537046325,-500.0,0.00012054,2]
[395198816,1764537046334,-1465.0639447,0.00012836,2]
[395198819,1764537046343,-1932.47083963,0.00013076,2]
[395198821,1764537046353,-500.0,0.00013076,2]
[395198823,1764537046363,-500.0,0.00013076,2]
[395198825,1764537046371,-500.0,0.00013076,2]
[395198826,1764537046380,-500.0,0.00013076,2]
[395198828,1764537046390,-500.0,0.00013076,2]
[395198830,1764537046399,-231.28369723,0.00013076,2]
[395198832,1764537046408,-247.52011438,0.00013076,2]
[395198834,1764537046418,-1000.0,0.00013076,2]
[395198837,1764537046428,-1000.0,0.00013076,2]
[395198838,1764537046442,-500.0,0.00013076,2]
[395198841,1764537046452,-1000.0,0.00013076,2]
[395198843,1764537046461,-500.0,0.00013076,2]
[395198845,1764537046472,-1000.0,0.00013076,2]
[395198847,1764537046481,-68.08840646,0.00013076,2]
[395198850,1764537046505,-431.91159354,0.00013076,2]
[395198852,1764537046515,-51.99588879,0.00013076,2]
[395198855,1764537046532,-448.00411121,0.00013076,2]
[395198873,1764537046541,-68.50331993,0.00013076,2]
[395199277,1764538232176,-465.702,8.985e-05,2]
[395199279,1764538232187,-224.0,8.985e-05,2]
[395199280,1764538232196,-382.86471731,9.104e-05,2]
[395199281,1764538232207,-292.56423592,9.145e-05,2]
[395199283,1764538232216,-300.0,9.446e-05,2]
[395199284,1764538232228,-300.0,9.446e-05,2]
[395199287,1764538232238,-1200.0,9.446e-05,2]
[395199290,1764538232251,-160.44649129,9.447e-05,2]
[395199293,1764538232261,-156.99132718,9.447e-05,2]
[395199296,1764538232270,-433.69723966,9.447e-05,2]
[395199299,1764538232279,-375.81669778,9.447e-05,2]
[395199302,1764538232289,-1200.0,9.447e-05,2]
[395199305,1764538232299,-5601.89290971,9.448e-05,2]
[395199308,1764538232312,-462.228,9.448e-05,2]
[395199357,1764538238366,-300.0,9.639e-05,2]
[395199359,1764538238375,-200.0,9.639e-05,2]
[395199570,1764538240354,-100.0,9.639e-05,2]
[395199572,1764538240364,-300.0,9.639e-05,2]
[395199574,1764538240373,-100.0,9.639e-05,2]
[395199780,1764538243703,-200.0,9.639e-05,2]
[395199781,1764538243713,-300.0,9.639e-05,2]
[395199782,1764538243722,-300.0,9.639e-05,2]
[395199783,1764538243732,-300.0,9.639e-05,2]
[395199784,1764538243742,-300.0,9.639e-05,2]
[395199785,1764538243751,-300.0,9.639e-05,2]
[395199786,1764538243761,-300.0,9.639e-05,2]
[395199787,1764538243770,-300.0,9.639e-05,2]
[395199788,1764538243779,-300.0,9.639e-05,2]
[395199789,1764538243789,-300.0,9.639e-05,2]
[395199790,1764538243798,-300.0,9.639e-05,2]
[395199791,1764538243807,-300.0,9.639e-05,2]
[395199792,1764538243817,-600.0,9.639e-05,2]
[395199793,1764538243827,-370.52434154,0.00010603,2]
[395199794,1764538243838,-349.47565846,0.00010603,2]
[395199795,1764538243848,-500.0,0.00010958,2]
[395199796,1764538243857,-999.0,0.00010959,2]
[395199797,1764538243867,-500.0,0.00010959,2]
[395199798,1764538243877,-500.0,0.00010959,2]
[395199799,1764538243886,-54.98527493,0.00010959,2]
[395199837,1764538246227,-341.28155967,0.00010959,2]
[395199838,1764538246236,-66.40964013,0.00011145,2]
[395199839,1764538246248,-278.81615826,0.00011145,2]
[395199840,1764538246257,-222.23384174,0.00011663,2]
[395199841,1764538246269,-454.932072,0.00011663,2]
[395199843,1764539432168,-370.81756962,8.801e-05,2]
[395199844,1764539432178,-223.0,8.801e-05,2]
[395199845,1764539432188,-282.80843523,8.846e-05,2]
[395199846,1764539432197,-276.34100397,8.89e-05,2]
[395200266,1764539438495,-94.47656565,8.89e-05,2]
[395200268,1764539438506,-306.383643,9.104e-05,2]
[395200270,1764539438516,-661.00045467,9.349e-05,2]
[395200275,1764539438552,-538.99954533,9.349e-05,2]
[395200277,1764539438562,-14.16627757,9.755e-05,2]
[395200279,1764539438573,-518.21374153,9.755e-05,2]
[395200448,1764539440474,-667.6199809,9.755e-05,2]
[395200450,1764539440483,-300.0,9.756e-05,2]
[395200452,1764539440493,-199.0,9.756e-05,2]
[395200454,1764539440502,-527.4575406,9.757e-05,2]
[395200456,1764539440512,-949.42357309,9.757e-05,2]
[395200458,1764539440522,-1481.33324662,9.757e-05,2]
[395200462,1764539440549,-206.53088331,9.757e-05,2]
[395200464,1764539440558,-15236.44619116,9.831e-05,2]
[395200466,1764539440570,-3704.51237733,9.831e-05,2]
[395200768,1764539443441,-667.6199809,9.657e-05,2]
[395200769,1764539443450,-4602.41109339,9.831e-05,2]
[395200770,1764539443553,-26456.63033812,9.831e-05,2]
[395200771,1764539443563,-300.0,9.831e-05,2]
[395200772,1764539443573,-300.0,9.831e-05,2]
[395200773,1764539443582,-300.0,9.831e-05,2]
[395200774,1764539443592,-300.0,9.831e-05,2]
[395200775,1764539443601,-300.0,9.831e-05,2]
[395200776,1764539443611,-300.0,9.831e-05,2]
[395200777,1764539443620,-300.0,9.831e-05,2]
[395200778,1764539443630,-300.0,9.831e-05,2]
[395200779,1764539443639,-300.0,9.831e-05,2]
[395200780,1764539443648,-300.0,9.831e-05,2]
[395200781,1764539443658,-300.0,9.831e-05,2]
[395200783,1764539443667,-300.0,9.831e-05,2]
[395200784,1764539443676,-300.0,9.831e-05,2]
[395200786,1764539443685,-300.0,9.831e-05,2]
[395200788,1764539443695,-300.0,9.831e-05,2]
[395200790,1764539443704,-600.0,9.831e-05,2]
[395200792,1764539443713,-492.76152907,9.831e-05,2]
[395200794,1764539443722,-500.0,0.00010012,2]
[395200796,1764539443731,-492.76152904,0.00010013,2]
[395200798,1764539443740,-1312.44743896,0.00010062,2]
[395200800,1764539443749,-1698.9197337,0.000101,2]
[395200802,1764539443759,-1592.2412959,0.000101,2]
[395200804,1764539443769,-393.52621719,0.0001027,2]
[395200806,1764539443778,-449.74424822,0.0001027,2]
[395200808,1764539443787,-492.76152904,0.00010295,2]
[395200810,1764539443796,-492.76152904,0.00010577,2]
[395200811,1764539443805,-349.71161262,0.00010592,2]
[395200813,1764539443814,-720.0,0.00010814,2]
[395200815,1764539443824,-333.71395358,0.00010846,2]
[395200817,1764539443833,-492.76152904,0.00010859,2]
[395200820,1764539443843,-500.0,0.00010958,2]
[395200821,1764539443852,-1040.30335885,0.00010959,2]
[395200823,1764539443862,-353.67603643,0.00011233,2]
[395200825,1764539443871,-1698.9197337,0.0001124,2]
[395200827,1764539443880,-1533.02105023,0.0001132,2]
[395200829,1764539443889,-500.0,0.0001132,2]
[395200832,1764539443902,-756.90654598,0.00011895,2]
[395200834,1764539443914,-107.09345402,0.00011895,2]
[395200836,1764539443929,-500.0,0.00012054,2]
[395200838,1764539443938,-396.8792412,0.00012166,2]
[395200840,1764539443947,-151.0,0.00012171,2]
[395200842,1764539443956,-396.9531972,0.00012172,2]
[395200844,1764539443966,-396.9531972,0.00012172,2]
[395200863,1764539444132,-317.2687902,0.00012172,2]
[395200865,1764539444142,-396.9531972,0.00012172,2]
[395200867,1764539444151,-793.6364022,0.00012172,2]
[395200869,1764539444162,-396.9531972,0.00012172,2]
[395200871,1764539444171,-396.9531972,0.00012172,2]
[395200873,1764539444180,-396.9531972,0.00012172,2]
[395200875,1764539444189,-151.0,0.00012308,2]
[395200877,1764539444199,-1698.9197337,0.0001238,2]
[395200879,1764539444209,-384.61947192,0.00012846,2]
[395200881,1764539444219,-990.0,0.00012846,2]
[395200883,1764539444228,-2153.0,0.00012846,2]
[395200885,1764539444237,-630.0,0.00012846,2]
[395200887,1764539444246,-570.99583265,0.00012863,2]
[395200889,1764539444256,-500.0,0.00012863,2]
[395200891,1764539444265,-151.0,0.00012864,2]
[395200893,1764539444274,-151.0,0.00012864,2]
[395200895,1764539444284,-151.0,0.00012864,2]
[395200897,1764539444293,-500.0,0.00012864,2]
[395200899,1764539444302,-500.0,0.00012864,2]
[395200901,1764539444312,-500.0,0.00012864,2]
[395200902,1764539444322,-259.25,0.00012864,2]
[395200904,1764539444331,-500.0,0.00012864,2]
[395200906,1764539444340,-500.0,0.00012864,2]
[395200908,1764539444349,-500.0,0.00012864,2]
[395200910,1764539444359,-500.0,0.00012864,2]
[395200912,1764539444367,-500.0,0.00012864,2]
[395200914,1764539444376,-500.0,0.00012864,2]
[395200916,1764539444386,-500.0,0.00012864,2]
[395200918,1764539444394,-1000.0,0.00012864,2]
[395200920,1764539444403,-1000.0,0.00012864,2]
[395200922,1764539444413,-231.28369723,0.00012864,2]
[395200924,1764539444422,-1000.0,0.00012864,2]
[395200926,1764539444431,-1000.0,0.00012864,2]
[395200928,1764539444441,-1000.0,0.00012864,2]
[395200930,1764539444450,-1000.0,0.00012864,2]
[395200932,1764539444459,-1000.0,0.00012864,2]
[395200934,1764539444469,-1000.0,0.00012864,2]
[395200936,1764539444478,-1000.0,0.00012864,2]
[395200938,1764539444487,-1000.0,0.00012864,2]
[395200940,1764539444497,-1000.0,0.00012864,2]
[395200942,1764539444507,-1000.0,0.00012864,2]
[395200944,1764539444516,-1000.0,0.00012864,2]
[395200946,1764539444525,-950.80436188,0.00012864,2]
[395200948,1764539444535,-301.7532616,0.00012877,2]
[395200950,1764539444544,-301.7532616,0.00012877,2]
[395200952,1764539444554,-301.7532616,0.00012877,2]
[395200954,1764539444563,-269.3478885,0.00012877,2]
[395200956,1764539444572,-151.0,0.000129,2]
[395200958,1764539444581,-1284.87627585,0.000129,2]
[395200960,1764539444591,-1284.87627585,0.000129,2]
[395200962,1764539444600,-1284.87627585,0.000129,2]
[395200964,1764539444608,-425.17,0.00012985,2]
[395200966,1764539444618,-1000.0,0.00013085,2]
[395200968,1764539444627,-199.72167099,0.0001313,2]
[395200970,1764539444636,-155.40730965,0.0001313,2]
[395200972,1764539444646,-50000.0,0.00013142,2]
[395200974,1764539444656,-151.0,0.00013142,2]
[395200976,1764539444665,-151.0,0.00013142,2]
[395200978,1764539444675,-151.0,0.00013142,2]
[395200980,1764539444684,-252.706312,0.00013142,2]
[395200982,1764539444694,-500.0,0.0001315,2]
[395200984,1764539444702,-151.0,0.000132,2]
[395200986,1764539444712,-500.0,0.00013273,2]
[395200988,1764539444720,-500.0,0.00013273,2]
[395200990,1764539444729,-500.0,0.00013273,2]
[395200992,1764539444739,-500.0,0.00013273,2]
[395200994,1764539444747,-500.0,0.00013273,2]
[395200996,1764539444756,-500.0,0.00013273,2]
[395200998,1764539444766,-500.0,0.00013273,2]
[395201000,1764539444774,-500.0,0.00013273,2]
[395201002,1764539444783,-500.0,0.00013273,2]
[395201004,1764539444792,-500.0,0.00013273,2]
[395201006,1764539444801,-500.0,0.00013273,2]
[395201007,1764539444810,-500.0,0.00013273,2]